[Event "December 5 Early 2023"]
[Site "https://www.chess.com"]
[Date "2023.12.05"]
[Round "9"]
[White "Yeremyan, Alen"]
[Black "Spata, German"]
[Result "1-0"]
[Board "38"]
[TimeControl "180+1"]
[WhiteFideId "13308998"]
[BlackFideId "113026"]
[WhiteElo "2793"]
[BlackElo "2647"]
[WhiteTeam "ARM"]
[BlackTeam "ARG"]
[WhiteClock "0:01:26"]
[BlackClock "0:00:00"]

1. e4 {[%clk 0:03:00]}  e6 {[%clk 0:02:58]} 2. Nc3 {[%clk 0:03:00]}  d5 {[%clk 0:02:58]} 3. Qe2 {[%clk 0:02:58]}  dxe4 {[%clk 0:02:56]} 4. Nxe4 {[%clk 0:02:58]}  Nd7 {[%clk 0:02:56]} 5. d3 {[%clk 0:02:58]}  Ngf6 {[%clk 0:02:56]} 6. c3 {[%clk 0:02:58]}  Be7 {[%clk 0:02:55]} 7. g3 {[%clk 0:02:56]}  b6 {[%clk 0:02:47]} 8. Bg2 {[%clk 0:02:56]}  Rb8 {[%clk 0:02:47]} 9. Nf3 {[%clk 0:02:56]}  Bb7 {[%clk 0:02:45]} 10. O-O {[%clk 0:02:56]}  O-O {[%clk 0:02:45]} 11. Bf4 {[%clk 0:02:52]}  Nd5 {[%clk 0:02:40]} 12. Bd2 {[%clk 0:02:51]}  N5f6 {[%clk 0:02:39]} 13. Rfe1 {[%clk 0:02:50]}  Nc5 {[%clk 0:02:37]} 14. Nxc5 {[%clk 0:02:49]}  Bxc5 {[%clk 0:02:37]} 15. d4 {[%clk 0:02:50]}  Bxf3 {[%clk 0:02:25]} 16. Bxf3 {[%clk 0:02:47]}  Be7 {[%clk 0:02:26]} 17. Rad1 {[%clk 0:02:47]}  Qd7 {[%clk 0:02:22]} 18. Bg2 {[%clk 0:02:47]}  Rfd8 {[%clk 0:02:21]} 19. Bf4 {[%clk 0:02:46]}  Bd6 {[%clk 0:02:21]} 20. Bg5 {[%clk 0:02:46]}  Be7 {[%clk 0:02:21]} 21. h3 {[%clk 0:02:43]}  h6 {[%clk 0:02:22]} 22. Bc1 {[%clk 0:02:42]}  Qa4 {[%clk 0:02:08]} 23. b3 {[%clk 0:02:42]}  Qd7 {[%clk 0:02:06]} 24. Bb2 {[%clk 0:02:39]}  c6 {[%clk 0:02:04]} 25. c4 {[%clk 0:02:39]}  Qc7 {[%clk 0:02:04]} 26. Qf3 {[%clk 0:02:36]}  Rbc8 {[%clk 0:01:58]} 27. a4 {[%clk 0:02:32]}  Rd7 {[%clk 0:01:49]} 28. Rd3 {[%clk 0:02:31]}  c5 {[%clk 0:01:39]} 29. d5 {[%clk 0:02:28]}  Rcd8 {[%clk 0:01:38]} 30. Be5 {[%clk 0:02:21]}  Qc8 {[%clk 0:01:28]} 31. h4 {[%clk 0:02:20]}  exd5 {[%clk 0:01:27]} 32. Bh3 {[%clk 0:02:20]}  d4 {[%clk 0:01:20]} 33. Bxd7 {[%clk 0:02:17]}  Qxd7 {[%clk 0:01:20]} 34. Bxf6 {[%clk 0:02:17]}  Bxf6 {[%clk 0:01:20]} 35. Re4 {[%clk 0:02:17]}  a6 {[%clk 0:01:17]} 36. Kg2 {[%clk 0:02:16]}  b5 {[%clk 0:01:18]} 37. axb5 {[%clk 0:02:16]}  axb5 {[%clk 0:01:18]} 38. Rf4 {[%clk 0:02:12]}  bxc4 {[%clk 0:01:17]} 39. bxc4 {[%clk 0:02:12]}  Qa4 {[%clk 0:01:15]} 40. Rxf6 {[%clk 0:02:07]}  gxf6 {[%clk 0:01:15]} 41. Qxf6 {[%clk 0:02:08]}  Re8 {[%clk 0:00:58]} 42. Rf3 {[%clk 0:01:58]}  Qxc4 {[%clk 0:00:57]} 43. Qxh6 {[%clk 0:01:57]}  Qd5 {[%clk 0:00:53]} 44. Qf6 {[%clk 0:01:46]}  Re5 {[%clk 0:00:33]} 45. Kh2 {[%clk 0:01:42]}  Qe6 {[%clk 0:00:25]} 46. Qf4 {[%clk 0:01:42]}  Re4 {[%clk 0:00:16]} 47. Qg5+ {[%clk 0:01:42]}  Qg6 {[%clk 0:00:15]} 48. Qxc5 {[%clk 0:01:42]}  Qe6 {[%clk 0:00:06]} 49. Rf5 {[%clk 0:01:38]}  Kg7 {[%clk 0:00:03]} 50. Rg5+ {[%clk 0:01:38]}  Kf6 {[%clk 0:00:04]} 51. Rg8 {[%clk 0:01:37]}  Qe5 {[%clk 0:00:02]} 52. Qc6+ {[%clk 0:01:32]}  Qe6 {[%clk 0:00:02]} 53. Qc7 {[%clk 0:01:32]}  Qf5 {[%clk 0:00:00]} 54. Qd6+ {[%clk 0:01:26]} 1-0

[Event "December 5 Early 2023"]
[Site "https://www.chess.com"]
[Date "2023.12.05"]
[Round "9"]
[White "Weetik, Vjacheslav"]
[Black "Renjith, Sravan"]
[Result "1-0"]
[Board "39"]
[TimeControl "180+1"]
[WhiteFideId "4153472"]
[BlackFideId "4306783"]
[WhiteElo "2791"]
[BlackElo "2637"]
[WhiteTeam "RUS"]
[BlackTeam "NZL"]
[WhiteClock "0:00:39"]
[BlackClock "0:00:39"]

1. d4 {[%clk 0:02:59]}  d5 {[%clk 0:03:00]} 2. c4 {[%clk 0:02:57]}  e6 {[%clk 0:03:00]} 3. Nc3 {[%clk 0:02:57]}  c5 {[%clk 0:03:00]} 4. e3 {[%clk 0:02:57]}  Nc6 {[%clk 0:03:00]} 5. Nf3 {[%clk 0:02:57]}  Nf6 {[%clk 0:03:00]} 6. a3 {[%clk 0:02:57]}  cxd4 {[%clk 0:02:54]} 7. exd4 {[%clk 0:02:56]}  Be7 {[%clk 0:02:54]} 8. Bd3 {[%clk 0:02:51]}  O-O {[%clk 0:02:54]} 9. O-O {[%clk 0:02:51]}  a6 {[%clk 0:02:54]} 10. Re1 {[%clk 0:02:47]}  dxc4 {[%clk 0:02:54]} 11. Bxc4 {[%clk 0:02:47]}  b5 {[%clk 0:02:54]} 12. Ba2 {[%clk 0:02:48]}  Bb7 {[%clk 0:02:55]} 13. d5 {[%clk 0:02:47]}  exd5 {[%clk 0:02:55]} 14. Nxd5 {[%clk 0:02:45]}  Nxd5 {[%clk 0:02:55]} 15. Qxd5 {[%clk 0:02:43]}  Bf6 {[%clk 0:02:52]} 16. Qh5 {[%clk 0:02:42]}  g6 {[%clk 0:02:49]} 17. Qg4 {[%clk 0:02:20]}  Qc8 {[%clk 0:02:40]} 18. Qg3 {[%clk 0:01:59]}  Re8 {[%clk 0:02:25]} 19. Bg5 {[%clk 0:01:50]}  Bxb2 {[%clk 0:02:21]} 20. h4 {[%clk 0:01:33]}  Bxa1 {[%clk 0:02:11]} 21. Rxa1 {[%clk 0:01:33]}  Qf5 {[%clk 0:02:11]} 22. Qc7 {[%clk 0:01:18]}  Rab8 {[%clk 0:02:01]} 23. Rd1 {[%clk 0:00:55]}  Rec8 {[%clk 0:01:46]} 24. Qg3 {[%clk 0:00:55]}  Kg7 {[%clk 0:01:35]} 25. Rd6 {[%clk 0:00:54]}  Re8 {[%clk 0:01:27]} 26. h5 {[%clk 0:00:47]}  Na5 {[%clk 0:01:11]} 27. Rf6 {[%clk 0:00:39]}  Qxf6 {[%clk 0:00:39]} 28. h6+ {[%clk 0:00:39]} 1-0

[Event "December 5 Early 2023"]
[Site "https://www.chess.com"]
[Date "2023.12.05"]
[Round "9"]
[White "Gimenez Aguirre, Alejo Ismael"]
[Black "Wagner, Dennis"]
[Result "1-0"]
[Board "41"]
[TimeControl "180+1"]
[WhiteFideId "32041667"]
[BlackFideId "24650684"]
[WhiteElo "2631"]
[BlackElo "2769"]
[WhiteTeam "ARG"]
[BlackTeam "GER"]
[WhiteClock "0:00:22"]
[BlackClock "0:00:07"]

1. e4 {[%clk 0:02:58]}  e5 {[%clk 0:02:59]} 2. Nf3 {[%clk 0:02:58]}  Nf6 {[%clk 0:02:58]} 3. Nxe5 {[%clk 0:02:57]}  d6 {[%clk 0:02:59]} 4. Nf3 {[%clk 0:02:57]}  Nxe4 {[%clk 0:02:59]} 5. Nc3 {[%clk 0:02:56]}  Nf6 {[%clk 0:02:56]} 6. d4 {[%clk 0:02:52]}  g6 {[%clk 0:02:50]} 7. Bg5 {[%clk 0:02:44]}  Bg7 {[%clk 0:02:50]} 8. Qd2 {[%clk 0:02:43]}  Qe7+ {[%clk 0:02:39]} 9. Be2 {[%clk 0:02:41]}  c6 {[%clk 0:02:32]} 10. O-O-O {[%clk 0:02:39]}  h6 {[%clk 0:02:30]} 11. Bh4 {[%clk 0:02:38]}  O-O {[%clk 0:02:23]} 12. Rhe1 {[%clk 0:02:29]}  Bf5 {[%clk 0:02:16]} 13. Bd3 {[%clk 0:02:24]}  Qd7 {[%clk 0:02:16]} 14. Bxf6 {[%clk 0:02:07]}  Bxf6 {[%clk 0:02:12]} 15. Qxh6 {[%clk 0:02:07]}  Na6 {[%clk 0:02:04]} 16. Ng5 {[%clk 0:02:03]}  Bxg5+ {[%clk 0:02:04]} 17. Qxg5 {[%clk 0:02:04]}  Bxd3 {[%clk 0:01:57]} 18. Rxd3 {[%clk 0:02:02]}  Rfe8 {[%clk 0:01:54]} 19. Ne4 {[%clk 0:01:57]}  Kg7 {[%clk 0:01:11]} 20. Qf6+ {[%clk 0:01:49]}  Kg8 {[%clk 0:01:11]} 21. Rh3 {[%clk 0:01:22]}  Qxh3 {[%clk 0:01:11]} 22. gxh3 {[%clk 0:01:23]}  d5 {[%clk 0:01:11]} 23. h4 {[%clk 0:01:07]}  dxe4 {[%clk 0:01:02]} 24. h5 {[%clk 0:01:06]}  Re6 {[%clk 0:01:02]} 25. Qf4 {[%clk 0:01:06]}  Rae8 {[%clk 0:00:57]} 26. hxg6 {[%clk 0:01:05]}  fxg6 {[%clk 0:00:58]} 27. a3 {[%clk 0:01:03]}  Kg7 {[%clk 0:00:54]} 28. h4 {[%clk 0:01:02]}  R8e7 {[%clk 0:00:41]} 29. h5 {[%clk 0:01:01]}  Nc7 {[%clk 0:00:35]} 30. Rg1 {[%clk 0:00:51]}  Nd5 {[%clk 0:00:32]} 31. Qh4 {[%clk 0:00:47]}  Rf6 {[%clk 0:00:19]} 32. Rxg6+ {[%clk 0:00:46]}  Rxg6 {[%clk 0:00:19]} 33. hxg6 {[%clk 0:00:47]}  Kxg6 {[%clk 0:00:20]} 34. c4 {[%clk 0:00:46]}  Nf6 {[%clk 0:00:20]} 35. Qg3+ {[%clk 0:00:38]}  Kf7 {[%clk 0:00:20]} 36. Qb8 {[%clk 0:00:39]}  a6 {[%clk 0:00:20]} 37. Qf4 {[%clk 0:00:38]}  Rd7 {[%clk 0:00:20]} 38. Qe5 {[%clk 0:00:35]}  Re7 {[%clk 0:00:20]} 39. Qf5 {[%clk 0:00:35]}  Rd7 {[%clk 0:00:18]} 40. Qc5 {[%clk 0:00:35]}  Ke6 {[%clk 0:00:17]} 41. a4 {[%clk 0:00:34]}  Rh7 {[%clk 0:00:11]} 42. Kb1 {[%clk 0:00:31]}  Rh5 {[%clk 0:00:10]} 43. Qb6 {[%clk 0:00:31]}  Rh7 {[%clk 0:00:08]} 44. Ka2 {[%clk 0:00:31]}  Rf7 {[%clk 0:00:08]} 45. Qd8 {[%clk 0:00:29]}  Kf5 {[%clk 0:00:04]} 46. a5 {[%clk 0:00:27]}  Kf4 {[%clk 0:00:04]} 47. Qd6+ {[%clk 0:00:26]}  Kf3 {[%clk 0:00:03]} 48. Qg3+ {[%clk 0:00:26]}  Ke2 {[%clk 0:00:04]} 49. Qe3+ {[%clk 0:00:27]}  Kf1 {[%clk 0:00:05]} 50. f3 {[%clk 0:00:26]}  Re7 {[%clk 0:00:03]} 51. fxe4 {[%clk 0:00:26]}  Nxe4 {[%clk 0:00:04]} 52. Qf3+ {[%clk 0:00:25]}  Ke1 {[%clk 0:00:04]} 53. d5 {[%clk 0:00:23]}  cxd5 {[%clk 0:00:04]} 54. cxd5 {[%clk 0:00:23]}  Nd2 {[%clk 0:00:04]} 55. Qg3+ {[%clk 0:00:22]}  Kd1 {[%clk 0:00:04]} 56. Qg1+ {[%clk 0:00:22]}  Kc2 {[%clk 0:00:04]} 57. Qc5+ {[%clk 0:00:22]}  Kd1 {[%clk 0:00:04]} 58. Qxe7 {[%clk 0:00:23]}  b5 {[%clk 0:00:03]} 59. axb6 {[%clk 0:00:22]}  a5 {[%clk 0:00:04]} 60. b7 {[%clk 0:00:22]}  a4 {[%clk 0:00:05]} 61. b8=Q {[%clk 0:00:22]}  a3 {[%clk 0:00:06]} 62. Qb3+ {[%clk 0:00:21]}  Nxb3 {[%clk 0:00:06]} 63. Kxb3 {[%clk 0:00:21]}  axb2 {[%clk 0:00:07]} 64. Kxb2 {[%clk 0:00:20]}  Kd2 {[%clk 0:00:08]} 65. d6 {[%clk 0:00:21]}  Kd1 {[%clk 0:00:07]} 66. d7 {[%clk 0:00:22]} 1-0

[Event "December 5 Early 2023"]
[Site "https://www.chess.com"]
[Date "2023.12.05"]
[Round "9"]
[White "Wagh Suyog"]
[Black "Ambartsumova, Karina"]
[Result "1/2-1/2"]
[Board "42"]
[TimeControl "180+1"]
[WhiteFideId "25071688"]
[BlackFideId "4166299"]
[WhiteElo "2766"]
[BlackElo "2629"]
[WhiteTeam "IND"]
[BlackTeam "RUS"]
[WhiteClock "0:00:02"]
[BlackClock "0:00:08"]

1. e4 {[%clk 0:03:00]}  e5 {[%clk 0:02:59]} 2. Nf3 {[%clk 0:02:59]}  Nc6 {[%clk 0:02:59]} 3. Bb5 {[%clk 0:02:59]}  Nf6 {[%clk 0:02:59]} 4. O-O {[%clk 0:02:58]}  Nxe4 {[%clk 0:02:59]} 5. Re1 {[%clk 0:02:58]}  Nd6 {[%clk 0:02:59]} 6. Nxe5 {[%clk 0:02:56]}  Nxe5 {[%clk 0:02:59]} 7. Rxe5+ {[%clk 0:02:57]}  Be7 {[%clk 0:02:59]} 8. Bf1 {[%clk 0:02:56]}  O-O {[%clk 0:03:00]} 9. d4 {[%clk 0:02:56]}  Bf6 {[%clk 0:02:55]} 10. Re1 {[%clk 0:02:55]}  Re8 {[%clk 0:02:56]} 11. Rxe8+ {[%clk 0:02:51]}  Nxe8 {[%clk 0:02:54]} 12. d5 {[%clk 0:02:48]}  d6 {[%clk 0:02:51]} 13. Nd2 {[%clk 0:02:43]}  Bf5 {[%clk 0:02:48]} 14. Nc4 {[%clk 0:02:42]}  g6 {[%clk 0:02:43]} 15. a4 {[%clk 0:02:41]}  a5 {[%clk 0:02:40]} 16. Bd3 {[%clk 0:02:33]}  Ng7 {[%clk 0:02:35]} 17. Ra3 {[%clk 0:02:30]}  Qd7 {[%clk 0:02:28]} 18. Ne3 {[%clk 0:02:22]}  Bxd3 {[%clk 0:02:27]} 19. Qxd3 {[%clk 0:02:22]}  Re8 {[%clk 0:02:23]} 20. Kf1 {[%clk 0:02:04]}  b6 {[%clk 0:02:19]} 21. Qc4 {[%clk 0:02:02]}  h5 {[%clk 0:01:40]} 22. Qb5 {[%clk 0:01:53]}  Qxb5+ {[%clk 0:01:37]} 23. axb5 {[%clk 0:01:53]}  Re4 {[%clk 0:01:38]} 24. c4 {[%clk 0:01:32]}  Bd4 {[%clk 0:01:30]} 25. f3 {[%clk 0:01:25]}  Rh4 {[%clk 0:01:19]} 26. Nd1 {[%clk 0:00:17]}  Rxh2 {[%clk 0:01:16]} 27. Nf2 {[%clk 0:00:14]}  Nf5 {[%clk 0:01:06]} 28. Bf4 {[%clk 0:00:11]}  Rh4 {[%clk 0:00:51]} 29. Bg5 {[%clk 0:00:07]}  Bxf2 {[%clk 0:00:50]} 30. Kxf2 {[%clk 0:00:06]}  Rxc4 {[%clk 0:00:49]} 31. Rc3 {[%clk 0:00:04]}  Rxc3 {[%clk 0:00:48]} 32. bxc3 {[%clk 0:00:05]}  a4 {[%clk 0:00:48]} 33. Bc1 {[%clk 0:00:04]}  f6 {[%clk 0:00:44]} 34. g4 {[%clk 0:00:04]}  hxg4 {[%clk 0:00:43]} 35. fxg4 {[%clk 0:00:05]}  Ne7 {[%clk 0:00:42]} 36. c4 {[%clk 0:00:05]}  Kf7 {[%clk 0:00:42]} 37. Kf3 {[%clk 0:00:05]}  f5 {[%clk 0:00:42]} 38. g5 {[%clk 0:00:04]}  Ke8 {[%clk 0:00:19]} 39. Ke3 {[%clk 0:00:04]}  Kd7 {[%clk 0:00:19]} 40. Kd4 {[%clk 0:00:04]}  f4 {[%clk 0:00:17]} 41. Bxf4 {[%clk 0:00:03]}  Nf5+ {[%clk 0:00:16]} 42. Kc3 {[%clk 0:00:04]}  a3 {[%clk 0:00:09]} 43. Kb3 {[%clk 0:00:04]}  Nd4+ {[%clk 0:00:08]} 44. Kxa3 {[%clk 0:00:03]}  Ne2 {[%clk 0:00:08]} 45. Be3 {[%clk 0:00:01]}  Ng3 {[%clk 0:00:07]} 46. Kb3 {[%clk 0:00:01]}  Nf5 {[%clk 0:00:08]} 47. Bc1 {[%clk 0:00:01]}  Nd4+ {[%clk 0:00:08]} 48. Kc3 {[%clk 0:00:02]}  Ne2+ {[%clk 0:00:08]} 49. Kc2 {[%clk 0:00:02]}  Nd4+ {[%clk 0:00:06]} 50. Kd3 {[%clk 0:00:02]}  Nf5 {[%clk 0:00:07]} 51. Ke4 {[%clk 0:00:03]}  Ke7 {[%clk 0:00:06]} 52. Bf4 {[%clk 0:00:03]}  Kd7 {[%clk 0:00:06]} 53. Kf3 {[%clk 0:00:04]}  Nd4+ {[%clk 0:00:06]} 54. Ke4 {[%clk 0:00:04]}  Nf5 {[%clk 0:00:07]} 55. Bd2 {[%clk 0:00:04]}  Ke7 {[%clk 0:00:07]} 56. Bc3 {[%clk 0:00:04]}  Kd7 {[%clk 0:00:08]} 57. Bf6 {[%clk 0:00:04]}  Ng3+ {[%clk 0:00:08]} 58. Kf4 {[%clk 0:00:05]}  Nf5 {[%clk 0:00:09]} 59. Bc3 {[%clk 0:00:04]}  Nh4 {[%clk 0:00:09]} 60. Bb2 {[%clk 0:00:03]}  Nf5 {[%clk 0:00:09]} 61. Bc3 {[%clk 0:00:03]}  Nh4 {[%clk 0:00:09]} 62. Bb2 {[%clk 0:00:03]}  Nf5 {[%clk 0:00:09]} 63. Ba3 {[%clk 0:00:03]}  Nd4 {[%clk 0:00:08]} 64. Ke4 {[%clk 0:00:02]}  Nf5 {[%clk 0:00:08]} 65. Bc1 {[%clk 0:00:02]}  Ng3+ {[%clk 0:00:08]} 66. Kf3 {[%clk 0:00:02]}  Nf5 {[%clk 0:00:08]} 67. Ke4 {[%clk 0:00:02]} 1/2-1/2

[Event "December 5 Early 2023"]
[Site "https://www.chess.com"]
[Date "2023.12.05"]
[Round "9"]
[White "Olenik Campa, Rudi"]
[Black "Sokolovsky, Yahli"]
[Result "0-1"]
[Board "45"]
[TimeControl "180+1"]
[WhiteFideId "14633264"]
[BlackFideId "2820242"]
[WhiteElo "2615"]
[BlackElo "2751"]
[WhiteTeam "SLO"]
[BlackTeam "ISR"]
[WhiteClock "0:00:35"]
[BlackClock "0:00:13"]

1. e4 {[%clk 0:03:00]}  d6 {[%clk 0:02:56]} 2. g3 {[%clk 0:02:59]}  e5 {[%clk 0:02:50]} 3. Bg2 {[%clk 0:03:00]}  Nc6 {[%clk 0:02:46]} 4. Ne2 {[%clk 0:03:00]}  g6 {[%clk 0:02:45]} 5. O-O {[%clk 0:03:00]}  Bg7 {[%clk 0:02:45]} 6. f4 {[%clk 0:03:00]}  Nge7 {[%clk 0:02:43]} 7. c3 {[%clk 0:03:00]}  O-O {[%clk 0:02:41]} 8. d4 {[%clk 0:03:00]}  f5 {[%clk 0:02:34]} 9. fxe5 {[%clk 0:02:54]}  dxe5 {[%clk 0:02:32]} 10. d5 {[%clk 0:02:55]}  Nb8 {[%clk 0:02:30]} 11. Nd2 {[%clk 0:02:48]}  Nd7 {[%clk 0:02:21]} 12. c4 {[%clk 0:02:43]}  a5 {[%clk 0:02:10]} 13. Nc3 {[%clk 0:02:39]}  Nc5 {[%clk 0:02:08]} 14. Qe2 {[%clk 0:02:38]}  a4 {[%clk 0:01:48]} 15. Nf3 {[%clk 0:02:27]}  b6 {[%clk 0:01:41]} 16. Be3 {[%clk 0:02:07]}  fxe4 {[%clk 0:01:32]} 17. Ng5 {[%clk 0:02:01]}  Nf5 {[%clk 0:01:31]} 18. Ngxe4 {[%clk 0:01:51]}  Nd4 {[%clk 0:01:21]} 19. Qd2 {[%clk 0:01:51]}  Nxe4 {[%clk 0:01:09]} 20. Nxe4 {[%clk 0:01:50]}  Bf5 {[%clk 0:01:09]} 21. Bh6 {[%clk 0:01:43]}  Bxe4 {[%clk 0:01:00]} 22. Bxe4 {[%clk 0:01:42]}  Bxh6 {[%clk 0:01:00]} 23. Qxh6 {[%clk 0:01:41]}  Qd6 {[%clk 0:01:00]} 24. h4 {[%clk 0:01:27]}  Rxf1+ {[%clk 0:00:56]} 25. Rxf1 {[%clk 0:01:26]}  Rf8 {[%clk 0:00:57]} 26. h5 {[%clk 0:01:19]}  Ne2+ {[%clk 0:00:48]} 27. Kg2 {[%clk 0:01:17]}  Rxf1 {[%clk 0:00:48]} 28. hxg6 {[%clk 0:01:16]}  hxg6 {[%clk 0:00:27]} 29. Bxg6 {[%clk 0:01:16]}  Rg1+ {[%clk 0:00:15]} 30. Kf2 {[%clk 0:00:39]}  Qf8+ {[%clk 0:00:14]} 31. Kxe2 {[%clk 0:00:35]}  Qxh6 {[%clk 0:00:13]} 0-1

[Event "December 5 Early 2023"]
[Site "https://www.chess.com"]
[Date "2023.12.05"]
[Round "9"]
[White "Sahakyan, Aleks"]
[Black "Aswath, S"]
[Result "1-0"]
[Board "48"]
[TimeControl "180+1"]
[WhiteFideId "13316338"]
[BlackFideId "46694919"]
[WhiteElo "2727"]
[BlackElo "2610"]
[WhiteTeam "ARM"]
[BlackTeam "IND"]
[WhiteClock "0:00:39"]
[BlackClock "0:00:03"]

1. e4 {[%clk 0:02:57]}  c5 {[%clk 0:02:58]} 2. Nc3 {[%clk 0:02:56]}  d6 {[%clk 0:02:58]} 3. f4 {[%clk 0:02:55]}  Nc6 {[%clk 0:02:56]} 4. Nf3 {[%clk 0:02:55]}  g6 {[%clk 0:02:56]} 5. Bc4 {[%clk 0:02:56]}  Bg7 {[%clk 0:02:56]} 6. O-O {[%clk 0:02:57]}  e6 {[%clk 0:02:54]} 7. d3 {[%clk 0:02:57]}  Nge7 {[%clk 0:02:54]} 8. Qe1 {[%clk 0:02:57]}  O-O {[%clk 0:02:53]} 9. f5 {[%clk 0:02:58]}  gxf5 {[%clk 0:02:45]} 10. Qh4 {[%clk 0:02:58]}  Ng6 {[%clk 0:02:26]} 11. Qh5 {[%clk 0:02:58]}  Nd4 {[%clk 0:02:26]} 12. Ng5 {[%clk 0:02:45]}  h6 {[%clk 0:02:19]} 13. exf5 {[%clk 0:02:46]}  Nxf5 {[%clk 0:02:16]} 14. Rxf5 {[%clk 0:02:03]}  hxg5 {[%clk 0:01:47]} 15. Bxg5 {[%clk 0:01:54]}  Qb6 {[%clk 0:01:47]} 16. Ne4 {[%clk 0:01:35]}  d5 {[%clk 0:01:36]} 17. Nf6+ {[%clk 0:01:22]}  Bxf6 {[%clk 0:01:36]} 18. Rxf6 {[%clk 0:01:23]}  Qxb2 {[%clk 0:01:23]} 19. Raf1 {[%clk 0:01:19]}  Bd7 {[%clk 0:01:23]} 20. Bh6 {[%clk 0:00:52]}  Qd4+ {[%clk 0:00:40]} 21. Kh1 {[%clk 0:00:50]}  dxc4 {[%clk 0:00:19]} 22. Rxg6+ {[%clk 0:00:49]}  fxg6 {[%clk 0:00:18]} 23. Qxg6+ {[%clk 0:00:50]}  Kh8 {[%clk 0:00:19]} 24. Bxf8 {[%clk 0:00:50]}  Bc6 {[%clk 0:00:03]} 25. Be7 {[%clk 0:00:39]} 1-0

[Event "December 5 Early 2023"]
[Site "https://www.chess.com"]
[Date "2023.12.05"]
[Round "9"]
[White "Navarrete Mendez, Gonzalo Alberto"]
[Black "Matinian, Nikita"]
[Result "0-1"]
[Board "50"]
[TimeControl "180+1"]
[WhiteFideId "5106850"]
[BlackFideId "24129100"]
[WhiteElo "2603"]
[BlackElo "2715"]
[WhiteTeam "MEX"]
[BlackTeam "FID"]
[WhiteClock "0:00:11"]
[BlackClock "0:00:50"]

1. e4 {[%clk 0:03:00]}  c5 {[%clk 0:02:39]} 2. Nf3 {[%clk 0:03:00]}  e6 {[%clk 0:02:38]} 3. Nc3 {[%clk 0:03:01]}  Nc6 {[%clk 0:02:38]} 4. d4 {[%clk 0:03:01]}  cxd4 {[%clk 0:02:39]} 5. Nxd4 {[%clk 0:03:01]}  Qc7 {[%clk 0:02:39]} 6. Ndb5 {[%clk 0:02:53]}  Qb8 {[%clk 0:02:39]} 7. Be3 {[%clk 0:02:51]}  a6 {[%clk 0:02:35]} 8. Bb6 {[%clk 0:02:51]}  axb5 {[%clk 0:02:33]} 9. Nxb5 {[%clk 0:02:52]}  Bb4+ {[%clk 0:02:33]} 10. c3 {[%clk 0:02:50]}  Ba5 {[%clk 0:02:26]} 11. Nd6+ {[%clk 0:02:50]}  Kf8 {[%clk 0:02:23]} 12. Bc5 {[%clk 0:02:49]}  b6 {[%clk 0:02:18]} 13. Qh5 {[%clk 0:02:27]}  Nh6 {[%clk 0:01:35]} 14. Ba3 {[%clk 0:01:06]}  Bxc3+ {[%clk 0:01:33]} 15. Ke2 {[%clk 0:00:38]}  Rxa3 {[%clk 0:01:34]} 16. Nc4 {[%clk 0:00:27]}  Ba6 {[%clk 0:01:31]} 17. Kd1 {[%clk 0:00:24]}  Bxc4 {[%clk 0:01:29]} 18. Bxc4 {[%clk 0:00:25]}  Qd6+ {[%clk 0:01:27]} 19. Ke2 {[%clk 0:00:23]}  Qd2+ {[%clk 0:01:27]} 20. Kf1 {[%clk 0:00:23]}  Bxb2 {[%clk 0:01:23]} 21. Rd1 {[%clk 0:00:22]}  Qc2 {[%clk 0:01:18]} 22. Bb3 {[%clk 0:00:20]}  Rxb3 {[%clk 0:01:18]} 23. axb3 {[%clk 0:00:21]}  Bd4 {[%clk 0:01:10]} 24. Qf3 {[%clk 0:00:20]}  Ne5 {[%clk 0:01:06]} 25. Qe2 {[%clk 0:00:20]}  Qxe2+ {[%clk 0:01:05]} 26. Kxe2 {[%clk 0:00:21]}  Bc5 {[%clk 0:01:04]} 27. f4 {[%clk 0:00:21]}  Nc6 {[%clk 0:01:04]} 28. Rxd7 {[%clk 0:00:21]}  g6 {[%clk 0:00:58]} 29. Ra1 {[%clk 0:00:21]}  Kg7 {[%clk 0:00:58]} 30. h3 {[%clk 0:00:19]}  e5 {[%clk 0:00:54]} 31. f5 {[%clk 0:00:18]}  gxf5 {[%clk 0:00:53]} 32. exf5 {[%clk 0:00:18]}  Nxf5 {[%clk 0:00:53]} 33. g4 {[%clk 0:00:17]}  Nfd4+ {[%clk 0:00:52]} 34. Kd3 {[%clk 0:00:16]}  Nxb3 {[%clk 0:00:52]} 35. Rf1 {[%clk 0:00:14]}  Rf8 {[%clk 0:00:52]} 36. h4 {[%clk 0:00:14]}  Bd4 {[%clk 0:00:50]} 37. g5 {[%clk 0:00:11]}  Nc5+ {[%clk 0:00:50]} 0-1